bitfinex-derivatives/quotes_SOLF0:USTF0_20260302
["timestamp","ask_amount","ask_price","bid_price","bid_amount"]
[1772422551818,29.0191037,84.853,84.82,3.0483698]
[1772422554920,10.6074,84.852,84.82,3.0483698]
[1772422556129,29.0191037,84.851,84.81,3.0483698]
[1772422558523,29.0191037,84.851,84.82,3.0483698]
[1772422559124,29.0191037,84.851,84.81,3.0483698]
[1772422560928,10.6074,84.852,84.81,3.0483698]
[1772422560929,32.0674735,84.85,84.81,3.0483698]
[1772422561124,29.0191037,84.878,84.831,28.52213017]
[1772422561325,29.0191037,84.878,84.755,21.69562845]
[1772422561326,29.0191037,84.892,84.86,3.0483698]
[1772422561525,32.0674735,84.89,84.844,28.52213017]
[1772422561720,32.0674735,84.88,84.84,3.0483698]
[1772422561920,3.0483698,84.89,84.85,3.0483698]
[1772422562120,3.0483698,84.89,84.84,31.57049997]
[1772422562121,3.0483698,84.88,84.84,31.57049997]
[1772422562429,32.0674735,84.89,84.84,31.57049997]
[1772422562822,29.0191037,84.888,84.84,31.57049997]
[1772422564221,29.0191037,84.885,84.84,31.57049997]
[1772422566137,29.0191037,84.885,84.85,3.0483698]
[1772422566336,3.0483698,84.9,84.86,3.0483698]
[1772422566836,29.0191037,84.898,84.86,3.0483698]
[1772422567034,29.0191037,84.889,84.85,31.57049997]
[1772422567436,29.0191037,84.917,84.871,28.52213017]
[1772422567638,29.0191037,84.917,84.88,3.0483698]
[1772422568640,21.55971824,84.922,84.88,3.0483698]
[1772422568841,21.55971824,84.922,84.9,3.0483698]
[1772422569542,21.55971824,84.922,84.89,3.0483698]
[1772422570639,29.0191037,84.918,84.85,28.52213017]
[1772422570842,21.55971824,84.922,84.86,3.0483698]
[1772422570843,29.0191037,84.909,84.86,3.0483698]
[1772422571143,29.0191037,84.909,84.87,3.0483698]
[1772422571342,29.0191037,84.909,84.85,28.52213017]
[1772422571343,39.6194037,84.909,84.86,3.0483698]
[1772422571543,29.0191037,84.908,84.86,3.0483698]
[1772422572241,29.0191037,84.908,84.85,28.52213017]
[1772422572242,32.0674735,84.89,84.85,3.0483698]
[1772422572940,3.0483698,84.9,84.85,3.0483698]
[1772422573140,3.0483698,84.9,84.86,3.0483698]
[1772422574543,33.5277371,84.89,84.85,3.0483698]
[1772422575953,44.1304371,84.89,84.85,3.0483698]
[1772422576253,33.5277371,84.89,84.85,3.0483698]
[1772422576942,30.4793673,84.89,84.85,3.0483698]
[1772422577343,33.5277371,84.89,84.842,293.93396384]
[1772422578750,21.55971824,84.922,84.825,462.17252301]
[1772422578751,29.66881762,84.869,84.825,462.17252301]
[1772422579248,29.66881762,84.869,84.83,3.0483698]
[1772422579846,21.55971824,84.922,84.825,462.17252301]
[1772422579847,29.66881762,84.897,84.85,3.0483698]
[1772422580046,3.0483698,84.89,84.85,3.0483698]
[1772422580249,32.71718742,84.89,84.85,3.0483698]
[1772422580447,10.6031,84.887,84.85,3.0483698]
[1772422580647,29.66881762,84.886,84.84,31.54557486]
[1772422581052,3.0483698,84.88,84.84,31.54557486]
[1772422583554,3.0483698,84.88,84.825,462.17252301]
[1772422583555,32.71718742,84.87,84.83,3.0483698]
[1772422583751,32.71718742,84.86,84.825,462.17252301]
[1772422587861,3.0483698,84.89,84.841,28.49720506]
[1772422588060,29.66881762,84.889,84.841,28.49720506]
[1772422588360,3.0483698,84.88,84.841,28.49720506]
[1772422588764,29.66881762,84.889,84.841,28.49720506]
[1772422589760,10.6031,84.887,84.841,28.49720506]
[1772422589960,32.71718742,84.88,84.84,3.0483698]
[1772422590264,32.71718742,84.88,84.83,3.0483698]
[1772422590962,10.6044,84.877,84.83,3.0483698]
[1772422591161,3.0483698,84.9,84.86,3.0483698]
[1772422591368,29.66881762,84.897,84.85,3.0483698]
[1772422592364,29.66881762,84.894,84.85,3.0483698]
[1772422592663,32.71718742,84.89,84.85,3.0483698]
[1772422593062,10.603,84.888,84.85,3.0483698]
[1772422593367,29.66881762,84.869,84.825,462.17252301]
[1772422593763,32.71718742,84.86,84.825,462.17252301]
[1772422594265,32.71718742,84.86,84.81,31.54557486]
[1772422594866,29.66881762,84.86,84.82,3.0483698]
[1772422595764,10.6065,84.859,84.82,3.0483698]
[1772422596968,29.66881762,84.874,84.84,3.0483698]
[1772422597164,29.66881762,84.874,84.83,3.0483698]
[1772422597365,3.0483698,84.87,84.83,3.0483698]
[1772422598167,29.66881762,84.859,84.82,3.0483698]
[1772422598368,3.0483698,84.87,84.82,31.54557486]
[1772422598569,3.0483698,84.87,84.83,3.0483698]
[1772422599268,29.66881762,84.859,84.81,3.0483698]
[1772422599466,29.66881762,84.859,84.82,3.0483698]
[1772422600469,40.27541762,84.859,84.82,3.0483698]
[1772422602570,40.27541762,84.859,84.82,3.04826428]
[1772422603468,29.66881762,84.852,84.81,3.04826428]
[1772422604170,10.6076,84.851,84.81,3.04826428]
[1772422605472,10.6064,84.86,84.82,3.04826428]
[1772422605875,29.66881762,84.859,84.82,3.04826428]
[1772422611877,10.6062,84.862,84.82,3.04826428]
[1772422611878,28.90277939,84.856,84.82,3.04826428]
[1772422612375,28.90277939,84.854,84.82,3.04826428]
[1772422612671,28.90277939,84.854,84.81,3.04826428]
[1772422613978,28.90277939,84.851,84.81,3.04826428]
[1772422614771,28.90277939,84.849,84.81,3.04826428]
[1772422616871,28.90277939,84.849,84.809,10.6128]
[1772422617072,28.90277939,84.849,84.82,3.04826428]
[1772422618076,28.90277939,84.849,84.81,3.04826428]
[1772422619576,28.90277939,84.849,84.82,3.04826428]
[1772422621081,28.90277939,84.849,84.81,3.04826428]
[1772422621274,28.90277939,84.849,84.8,3.04826428]
[1772422621481,28.90277939,84.847,84.81,3.04826428]
[1772422621880,28.90277939,84.874,84.83,33.69129899]
[1772422622179,28.90277939,84.874,84.84,3.04826428]
[1772422624484,28.90277939,84.889,84.85,3.04826428]
[1772422625779,10.84244688,84.917,84.89,10.6026]
[1772422626084,28.90277939,84.935,84.877,30.64303471]
[1772422626276,28.90277939,84.929,84.88,3.04826428]
[1772422626785,28.90277939,84.909,84.87,3.04826428]
[1772422627180,28.90277939,84.923,84.88,3.04826428]
[1772422627482,3.04826428,84.92,84.88,3.04826428]
[1772422627782,28.90277939,84.923,84.88,3.04826428]
[1772422627983,28.90277939,84.936,84.89,3.04826428]
[1772422628187,28.90277939,84.936,84.9,3.04826428]
[1772422629589,28.90277939,84.936,84.89,33.69129899]
[1772422630083,28.90277939,84.933,84.868,30.64303471]
[1772422630289,2.90899922,84.92,84.868,30.64303471]
[1772422630483,2.90899922,84.92,84.88,3.04826428]
[1772422630679,28.90277939,84.929,84.88,3.04826428]
[1772422631682,31.95104367,84.92,84.88,3.04826428]
[1772422632083,28.90277939,84.92,84.88,3.04826428]
[1772422632383,31.95104367,84.92,84.88,3.04826428]
[1772422632586,28.90277939,84.979,84.918,30.64303471]
[1772422632789,28.90277939,84.979,84.95,3.04826428]
[1772422633184,28.90277939,84.979,84.94,3.04826428]
[1772422633779,28.90277939,84.979,84.95,3.04826428]
[1772422633985,28.76593093,84.993,84.96,3.04826428]
[1772422634175,28.76593093,85.057,84.96,30.37313469]
[1772422634380,31.81419521,85.02,84.98,3.04826428]
[1772422634577,28.76593093,85.02,84.96,37.60410046]
[1772422634983,28.76593093,85.039,84.981,30.37313469]
[1772422635283,28.76593093,85.039,84.92,7.23096577]
[1772422635284,28.76593093,85.025,84.964,30.37313469]
[1772422635488,7.23096577,85.01,84.948,30.37313469]
[1772422635684,28.76593093,85.009,84.948,30.37313469]
[1772422637594,28.76593093,85.009,84.951,30.39730789]
[1772422640293,2.04772132,85.045,84.92,7.23096577]
[1772422640294,30.43375513,85.044,84.986,30.39730789]
[1772422640489,30.43375513,85.039,84.986,30.39730789]
[1772422641891,30.43375513,85.039,84.936,164.8411]
[1772422641892,30.43375513,85.039,84.972,40.98970789]
[1772422642191,30.43375513,85.039,84.973,30.39730789]
[1772422644390,30.43375513,85.029,84.96,30.39730789]
[1772422644593,30.43375513,85.019,84.96,30.39730789]
[1772422645298,30.43375513,85.009,84.945,30.39730789]
[1772422645798,7.23096577,85.03,84.96,7.23096577]
[1772422645994,30.43375513,85.029,84.961,30.39730789]
[1772422646193,30.43375513,85.019,84.961,30.39730789]
[1772422646592,30.43375513,85.009,84.961,30.39730789]
[1772422646993,30.43375513,85.007,84.941,30.39730789]
[1772422647297,30.43375513,84.999,84.941,30.39730789]
[1772422648692,30.43375513,84.999,84.93,7.23096577]
[1772422648693,7.23096577,85.0,84.93,7.23096577]
[1772422648892,7.23096577,85.0,84.9,509.5484418]
[1772422648893,30.43375513,84.979,84.923,30.39730789]
[1772422649791,30.43375513,84.996,84.931,30.39730789]
[1772422649998,30.43375513,84.996,84.938,30.39730789]
[1772422651192,30.43375513,84.996,84.93,7.23096577]
[1772422651193,30.43375513,84.993,84.922,30.39730789]
[1772422651394,30.43375513,84.989,84.922,30.39730789]
[1772422652397,30.43375513,84.969,84.906,30.39730789]
[1772422652990,30.43375513,84.967,84.906,30.39730789]
[1772422653997,37.6647209,84.96,84.906,30.39730789]
[1772422654696,30.43375513,84.957,84.906,30.39730789]
[1772422654997,30.43375513,84.957,84.9,447.5484418]
[1772422655598,30.43375513,84.957,84.906,30.39730789]
[1772422656199,7.23096577,84.95,84.9,447.5484418]
[1772422656405,30.43375513,84.955,84.9,447.5484418]
[1772422656590,30.43375513,84.955,84.906,30.39730789]
[1772422656794,37.6647209,84.97,84.906,30.39730789]
[1772422657002,30.43375513,84.97,84.906,30.39730789]
[1772422658797,30.43375513,84.959,84.906,30.39730789]
[1772422659195,30.43375513,84.955,84.906,30.39730789]
[1772422660699,30.43375513,85.05,84.906,30.39730789]
[1772422660902,30.43375513,85.115,85.011,30.39730789]
[1772422661101,29.32903758,85.176,84.906,164.8988]
[1772422661102,30.43375513,85.095,85.021,30.39730789]
[1772422661403,30.43375513,85.095,85.024,35.39]
[1772422661597,30.43375513,85.129,85.026,30.39730789]
[1772422661803,30.43375513,85.129,84.956,0.02]
[1772422661804,30.43375513,85.129,85.045,30.39730789]
[1772422662197,30.43375513,85.129,85.047,30.39730789]
[1772422663007,30.43375513,85.129,85.06,37.62827366]
[1772422663303,30.43375513,85.129,85.06,30.39730789]
[1772422663607,30.43375513,85.119,85.04,37.62827366]
[1772422664004,30.43375513,85.119,85.047,30.39730789]
[1772422664200,30.43375513,85.119,85.06,7.23096577]
[1772422664406,30.43375513,85.119,85.051,30.39730789]
[1772422665007,30.43375513,85.099,85.03,7.21524576]
[1772422665207,30.43375513,85.099,85.021,30.39730789]
[1772422665410,30.43375513,85.099,85.03,37.61255365]
[1772422665905,30.43375513,85.117,85.051,30.39730789]
[1772422666413,30.43375513,85.109,85.033,30.39730789]
[1772422666803,30.43375513,85.099,85.033,30.39730789]
[1772422668308,38.16558597,85.07,85.013,30.85172801]
[1772422668703,30.95034021,85.059,84.996,30.85172801]
[1772422668907,7.21524576,85.08,84.96,7.21524576]
[1772422668908,30.95034021,85.079,84.981,30.85172801]
[1772422669219,30.95034021,85.069,85.011,30.85172801]
[1772422669404,7.21524576,85.06,85.0,7.21524576]
[1772422669610,30.95034021,85.059,84.993,30.85172801]
[1772422669908,30.95034021,85.059,84.96,7.21524576]
[1772422669909,7.21524576,85.07,85.001,30.85172801]
[1772422670114,30.95034021,85.079,85.01,7.21524576]
[1772422670419,30.95034021,85.068,85.001,30.85172801]
[1772422670906,7.21524576,85.06,85.001,30.85172801]
[1772422671108,7.21524576,85.06,84.99,7.21524576]
[1772422671109,38.16558597,85.06,84.99,38.06697377]
[1772422671411,38.16558597,85.06,84.99,30.85172801]
[1772422673709,30.95034021,85.049,84.99,30.85172801]
[1772422674411,30.95034021,85.049,84.974,10.5921]
[1772422674605,7.21524576,85.04,84.974,10.5921]
[1772422675014,7.21524576,85.04,84.974,41.44382801]
[1772422675209,7.21524576,85.04,84.975,30.85172801]
[1772422675511,38.16558597,85.04,84.975,30.85172801]
[1772422675707,30.95034021,85.064,84.975,30.85172801]
[1772422676017,30.95034021,85.077,85.001,30.85172801]
[1772422676216,30.95034021,85.069,85.004,30.85172801]
[1772422676715,7.21524576,85.07,85.004,30.85172801]
[1772422676716,30.95034021,85.067,85.004,30.85172801]
[1772422677812,30.95034021,85.059,84.99,7.21524576]
[1772422678020,30.95034021,85.059,84.991,30.85172801]
[1772422679812,30.95034021,85.039,84.961,30.85172801]
[1772422680714,30.95034021,85.029,84.961,30.85172801]
[1772422681309,30.95034021,85.028,84.961,30.85172801]
[1772422681717,10.5858,85.025,84.961,30.85172801]
[1772422682022,30.95034021,85.024,84.961,30.85172801]
[1772422682519,38.16558597,85.02,84.961,30.85172801]
[1772422682719,7.21524576,85.04,84.956,0.02]
[1772422682720,30.95034021,84.999,84.956,0.02]
[1772422682914,30.95034021,84.989,84.925,30.85172801]
[1772422683112,30.95034021,84.979,84.91,7.21524576]
[1772422683515,30.95034021,84.975,84.908,30.85172801]
[1772422683715,30.95034021,84.969,84.908,30.85172801]
[1772422684918,10.5929,84.968,84.908,41.45212801]
[1772422685120,30.95034021,84.967,84.908,41.45212801]
[1772422686327,10.5934,84.965,84.908,30.85172801]
[1772422686724,30.95034021,84.967,84.908,30.85172801]
[1772422687023,30.95034021,84.985,84.92,7.21524576]
[1772422687225,30.95034021,84.979,84.919,30.85172801]
[1772422688320,30.95034021,84.975,84.905,289.18189253]
[1772422688620,30.95034021,84.959,84.905,289.18189253]
[1772422689325,10.5918,84.978,84.906,30.85172801]
[1772422689524,30.95034021,84.977,84.906,30.85172801]
[1772422689718,10.592,84.976,84.907,10.6005]
[1772422689926,41.54234021,84.976,84.91,7.21524576]
[1772422690123,41.54234021,84.976,84.91,38.06697377]
[1772422690521,30.95034021,84.976,84.913,30.85172801]
[1772422691622,30.95034021,84.969,84.905,289.18189253]
[1772422691825,30.95034021,84.969,84.906,30.85172801]
[1772422692926,30.95034021,84.969,84.907,41.45222801]
[1772422693622,31.25658141,84.985,84.908,29.29994889]
[1772422693829,31.25658141,84.979,84.91,7.21524576]
[1772422694021,7.21524576,84.95,84.905,289.18189253]
[1772422695622,31.25658141,84.974,84.906,29.29994889]
[1772422695820,7.21524576,84.97,84.906,29.29994889]
[1772422696030,38.47182717,84.96,84.906,29.29994889]
[1772422697933,29.78796677,84.957,84.906,29.29994889]
[1772422698231,37.00321253,84.95,84.905,289.18189253]
[1772422699034,10.5956,84.947,84.905,289.18189253]
[1772422699238,37.00321253,84.93,84.9,447.5484418]
[1772422699840,29.78796677,84.928,84.9,428.2161418]
[1772422700235,29.78796677,84.928,84.871,29.63660584]
[1772422700632,7.21524576,84.92,84.871,29.63660584]
[1772422701434,29.78796677,84.926,84.871,29.63660584]
[1772422701839,7.21524576,84.93,84.871,29.63660584]
[1772422701840,7.21524576,84.92,84.871,29.63660584]
[1772422703836,10.6001,84.911,84.854,29.63660584]
[1772422704041,29.78796677,84.909,84.854,29.63660584]
[1772422704739,10.6006,84.907,84.854,29.63660584]
[1772422704934,7.21524576,84.96,84.84,7.21524576]
[1772422704935,29.78796677,84.926,84.861,29.63660584]
[1772422705836,29.78796677,84.916,84.861,29.63660584]
[1772422706637,29.78796677,84.916,84.863,10.6059]
[1772422706840,29.78796677,84.916,84.864,29.63660584]
[1772422707942,10.5975,84.931,84.871,29.63660584]
[1772422708140,40.38546677,84.931,84.871,29.63660584]
[1772422708335,29.78796677,84.93,84.871,40.24160584]
[1772422708541,29.78796677,84.93,84.871,29.63660584]
[1772422708938,40.38706677,84.919,84.871,29.63660584]
[1772422710740,29.78796677,84.919,84.871,29.63660584]
[1772422711136,29.78796677,84.942,84.883,29.63660584]
[1772422711342,29.78796677,84.958,84.901,29.63660584]
[1772422712443,10.5926,84.971,84.911,29.63660584]
[1772422712744,40.38056677,84.971,84.911,29.63660584]
[1772422713247,29.78796677,84.97,84.911,29.63660584]
[1772422713841,29.78796677,84.968,84.911,29.63660584]
[1772422714037,29.78796677,84.959,84.895,29.63660584]
[1772422714345,29.78796677,84.947,84.895,29.63660584]
[1772422717853,10.5957,84.946,84.895,29.63660584]
[1772422719041,29.78796677,84.947,84.895,29.63660584]
[1772422720254,29.78796677,84.945,84.895,29.63660584]
[1772422721346,29.78796677,84.945,84.897,40.23840584]
[1772422721548,29.78796677,84.945,84.897,29.63660584]
[1772422722145,37.00321253,84.97,84.903,29.63660584]
[1772422723451,10.594,84.96,84.906,29.63660584]
[1772422723649,29.78796677,84.959,84.906,29.63660584]
[1772422724654,29.78796677,84.956,84.906,29.63660584]
[1772422725855,10.595,84.952,84.906,29.63660584]
[1772422727255,40.45073805,84.952,84.906,29.63660584]
[1772422728755,29.85573805,84.949,84.896,10.6018]
[1772422728957,29.85573805,84.949,84.897,29.23202968]
[1772422729358,40.45113805,84.948,84.897,29.23202968]
[1772422730854,40.45113805,84.948,84.898,10.6016]
[1772422731256,29.85573805,84.968,84.911,29.23202968]
[1772422731458,7.24368035,84.99,84.911,29.23202968]
[1772422731760,29.85573805,84.989,84.921,29.23202968]
[1772422732562,29.85573805,84.989,84.936,29.23202968]
[1772422734063,10.5905,84.988,84.937,10.5967]
[1772422735664,29.85573805,84.987,84.936,29.23202968]
[1772422735866,29.85573805,84.969,84.904,29.23202968]
[1772422736860,29.85573805,84.967,84.916,10.5993]
[1772422737662,29.85573805,84.967,84.904,29.23202968]
[1772422737663,29.85573805,84.967,84.906,10.6005]
[1772422737864,29.85573805,84.967,84.891,459.42750793]
[1772422737865,29.85573805,84.967,84.907,29.23202968]
[1772422738566,29.85573805,84.964,84.908,39.83232968]
[1772422739861,29.85573805,84.959,84.899,10.6014]
[1772422740764,29.85573805,84.959,84.907,29.23202968]
[1772422741865,29.85573805,84.959,84.908,39.83232968]
[1772422742165,10.5945,84.956,84.908,29.23202968]
[1772422742367,29.85573805,84.959,84.908,29.23202968]
[1772422743971,29.85573805,84.959,84.91,10.6001]
[1772422747372,40.44803805,84.974,84.918,29.23202968]
[1772422747579,29.85573805,84.974,84.921,29.23202968]
[1772422747775,29.85573805,84.989,84.931,29.23202968]
[1772422748673,29.85573805,84.975,84.92,7.24368035]
[1772422748874,29.85573805,84.959,84.897,29.23202968]
[1772422749673,29.85573805,84.957,84.898,10.6016]
[1772422750574,29.85573805,84.949,84.891,459.42750793]
[1772422750779,29.85573805,84.929,84.891,459.42750793]
[1772422751672,7.24368035,84.92,84.891,459.42750793]
[1772422751872,7.24368035,84.96,84.832,29.23202968]
[1772422751873,29.85573805,84.909,84.832,29.23202968]
[1772422752076,7.24368035,84.89,84.832,29.23202968]
[1772422752276,37.0994184,84.89,84.833,39.84172968]
[1772422752980,37.0994184,84.89,84.834,29.23202968]
[1772422753480,31.01412953,84.888,84.834,29.23202968]
[1772422754780,31.01412953,84.888,84.835,29.67803071]
[1772422755082,31.01412953,84.909,84.851,29.67803071]
[1772422755476,31.01412953,84.909,84.833,29.67803071]
[1772422755676,31.01412953,84.899,84.833,29.67803071]
[1772422756279,10.6017,84.898,84.835,10.6095]
[1772422756474,10.6017,84.898,84.833,29.67803071]
[1772422756475,31.01412953,84.897,84.833,29.67803071]
[1772422756977,31.01412953,84.897,84.85,7.24368035]
[1772422757175,164.7596,84.979,84.8,7.24368035]
[1772422757176,30.15200279,84.929,84.86,37.23699502]
[1772422757980,30.15200279,84.929,84.871,29.99331467]
[1772422759082,30.15200279,84.927,84.871,29.99331467]
[1772422759981,30.15200279,84.949,84.891,29.99331467]
[1772422760880,30.15200279,84.949,84.893,29.99331467]
[1772422761385,30.15200279,84.949,84.892,10.6024]
[1772422761386,30.15200279,84.949,84.897,29.99331467]
[1772422762780,30.15200279,84.949,84.884,10.6034]
[1772422763383,30.15200279,84.939,84.865,29.99331467]
[1772422763586,30.15200279,84.919,84.85,7.24368035]
[1772422763782,30.15200279,84.919,84.849,29.99331467]
[1772422763984,30.15200279,84.919,84.852,29.99331467]
[1772422764893,30.15200279,84.904,84.852,29.99331467]
[1772422765886,7.24368035,84.92,84.813,31.95537684]
[1772422765887,30.15200279,84.899,84.835,29.99331467]
[1772422766086,30.15200279,84.899,84.85,7.24368035]
[1772422766291,30.15200279,84.899,84.841,29.99331467]
[1772422767590,30.15200279,84.898,84.841,29.99331467]
[1772422769697,30.15200279,84.898,84.844,29.99331467]
[1772422770787,30.15200279,84.898,84.845,10.6082]
[1772422772097,30.15200279,84.898,84.848,10.6078]
[1772422773700,30.15200279,84.898,84.846,29.99331467]
[1772422776904,30.15200279,84.898,84.847,29.99331467]
[1772422783708,30.15200279,84.898,84.848,40.60111467]
[1772422783908,30.15200279,84.898,84.849,29.99331467]
[1772422784503,30.15200279,84.898,84.86,3.04568436]
[1772422785205,30.15200279,84.914,84.861,29.99331467]
[1772422785404,30.15200279,84.914,84.871,29.99331467]
[1772422786205,30.15200279,84.889,84.85,3.04568436]
[1772422786406,30.15200279,84.889,84.81,14.30070865]
[1772422786407,33.19768715,84.86,84.81,3.04568436]
[1772422786806,3.04568436,84.85,84.81,3.04568436]
[1772422787311,33.19768715,84.86,84.82,3.04568436]
[1772422787612,30.15200279,84.86,84.82,3.04568436]
[1772422787911,33.19768715,84.86,84.82,3.04568436]
[1772422788309,33.19768715,84.86,84.807,29.99331467]
[1772422788310,30.07754981,84.859,84.81,3.04568436]
[1772422788506,30.07754981,84.859,84.807,29.99331467]
[1772422788808,30.07754981,84.859,84.8,7.25928615]
[1772422788809,30.07754981,84.859,84.809,32.00900914]
[1772422789403,30.07754981,84.858,84.812,10.6123]
[1772422789612,30.07754981,84.858,84.812,42.62130914]
[1772422791115,21.1983,84.919,84.812,32.00900914]
[1772422791116,30.07754981,84.879,84.812,32.00900914]
[1772422791606,30.07754981,84.879,84.831,32.00900914]
[1772422792811,30.07754981,84.879,84.834,10.6096]
[1772422793604,30.07754981,84.879,84.834,42.61860914]
[1772422801209,30.07754981,84.879,84.83,7.25928615]
[1772422801210,30.07754981,84.879,84.838,32.00900914]
[1772422801413,30.07754981,84.879,84.8,7.25928615]
[1772422801414,30.07754981,84.894,84.841,32.00900914]
[1772422801812,30.07754981,84.892,84.841,32.00900914]
[1772422802916,30.07754981,84.89,84.841,32.00900914]
[1772422804516,37.33683596,84.89,84.828,32.00900914]
[1772422805811,30.07754981,84.89,84.831,32.00900914]
[1772422806116,30.07754981,84.908,84.851,32.00900914]
[1772422806311,30.07754981,84.908,84.8,28.40252432]
[1772422806312,30.07754981,84.908,84.838,32.00900914]
[1772422806512,30.07754981,84.889,84.838,32.00900914]
[1772422807022,30.07754981,84.887,84.838,32.00900914]
[1772422807813,30.07754981,84.869,84.782,14.39720971]
[1772422808021,30.07754981,84.839,84.782,32.00900914]
[1772422808214,7.25928615,84.88,84.76,7.25928615]
[1772422808215,30.07754981,84.869,84.811,32.00900914]
[1772422808817,30.07754981,84.869,84.821,32.00900914]
[1772422810614,30.07754981,84.869,84.83,3.04773099]
[1772422810920,10.6056,84.867,84.821,32.00900914]
[1772422811214,30.07754981,84.867,84.83,3.04773099]
[1772422811516,30.07754981,84.894,84.85,3.04773099]
[1772422812320,3.04773099,84.89,84.85,3.04773099]
[1772422813612,30.07754981,84.889,84.84,35.05674013]
[1772422813819,30.07754981,84.889,84.85,3.04773099]
[1772422814718,31.41116688,84.879,84.83,3.04773099]
[1772422815114,3.04773099,84.87,84.83,3.04773099]
[1772422815523,31.41116688,84.879,84.831,29.85898446]
[1772422816522,3.04773099,84.87,84.831,29.85898446]
[1772422817122,31.41116688,84.878,84.831,29.85898446]
[1772422817622,29.68561314,84.869,84.82,3.04773099]
[1772422817823,29.68561314,84.869,84.68,11.8]
[1772422817824,29.68561314,84.859,84.81,3.04773099]
[1772422818023,29.68561314,84.859,84.82,3.04773099]
[1772422819420,29.68561314,84.876,84.83,3.04773099]
[1772422822623,3.04773099,84.87,84.83,3.04773099]
[1772422822829,29.68561314,84.876,84.83,3.04773099]
[1772422823624,3.04773099,84.87,84.83,3.04773099]
[1772422826834,32.73334413,84.87,84.823,31.60770287]
[1772422827027,32.73334413,84.87,84.83,3.04773099]
[1772422827229,32.73334413,84.87,84.823,31.60770287]
[1772422830238,29.68561314,84.859,84.813,31.60770287]
[1772422830545,3.04773099,84.87,84.82,34.65543386]
[1772422830736,32.73334413,84.87,84.82,34.65543386]
[1772422831938,32.73334413,84.87,84.822,31.60770287]
[1772422832129,29.68561314,84.87,84.831,31.60770287]
[1772422832532,3.04773099,84.88,84.833,31.60770287]
[1772422832728,29.68561314,84.879,84.833,31.60770287]
[1772422833940,29.68561314,84.879,84.834,10.6096]
[1772422834441,29.68561314,84.879,84.833,31.60770287]
[1772422835738,29.68561314,84.877,84.833,31.60770287]
[1772422835943,3.04773099,84.87,84.833,31.60770287]
[1772422836543,29.68561314,84.877,84.833,31.60770287]
[1772422837040,3.04773099,84.89,84.841,31.60770287]
[1772422837244,3.04773099,84.89,84.792,21.57193878]
[1772422837245,29.68561314,84.89,84.851,31.60770287]
[1772422838341,21.99433351,84.909,84.86,34.65543386]
[1772422838538,21.99433351,84.909,84.87,3.04773099]
[1772422839140,21.99433351,84.909,84.88,3.04773099]
[1772422839541,21.99433351,84.909,84.871,31.60770287]
[1772422840245,29.68561314,84.908,84.86,3.04773099]
[1772422840642,29.68561314,84.908,84.86,34.65543386]
[1772422841946,29.68561314,84.899,84.86,3.04773099]
[1772422842244,29.68561314,84.899,84.852,31.60770287]
[1772422844341,29.68561314,84.899,84.86,3.04773099]
[1772422844740,29.68561314,84.899,84.87,3.04773099]
[1772422844938,21.99433351,84.909,84.87,3.04773099]
[1772422845842,21.99433351,84.909,84.87,34.65543386]
[1772422847343,31.93117366,84.908,84.87,34.65543386]
[1772422847550,31.93117366,84.908,84.87,31.60770287]
[1772422848449,31.93117366,84.908,84.87,34.65254108]
[1772422849050,21.99433351,84.909,84.87,34.65254108]
[1772422849844,21.99433351,84.909,84.88,3.04483821]
[1772422850048,31.93117366,84.918,84.88,3.04483821]
[1772422851250,31.93117366,84.918,84.87,34.65254108]
[1772422853854,31.93117366,84.918,84.871,29.99180449]
[1772422854155,31.93117366,84.918,84.88,3.04483821]
[1772422855253,31.93117366,84.915,84.871,29.99180449]
[1772422855953,31.93117366,84.915,84.873,29.99180449]
[1772422856654,31.93117366,84.927,84.88,33.0366427]
[1772422856957,31.93117366,84.927,84.829,21.2204]
[1772422856958,31.93117366,84.927,84.89,33.0366427]
[1772422857158,31.93117366,84.927,84.89,29.99180449]
[1772422858058,3.04483821,84.92,84.881,40.59550449]
[1772422860045,31.93117366,84.927,84.885,29.99180449]
[1772422861363,34.97601187,84.93,84.886,29.99180449]
[1772422861549,3.04483821,84.93,84.881,29.99180449]
[1772422861754,21.82668542,84.954,84.91,33.0366427]
[1772422862358,31.93117366,84.958,84.91,33.0366427]
[1772422863059,3.04483821,84.95,84.91,33.0366427]
[1772422864354,3.04483821,84.94,84.91,29.99180449]
[1772422864553,31.93117366,84.929,84.881,29.99180449]
[1772422864751,3.04483821,84.92,84.881,29.99180449]
[1772422868368,31.93117366,84.929,84.883,29.99180449]
[1772422869663,10.598,84.928,84.883,29.99180449]
[1772422869861,31.93117366,84.927,84.883,29.99180449]
[1772422872566,34.97601187,84.94,84.891,29.99180449]
[1772422872765,31.93117366,84.919,84.876,29.99180449]
[1772422872961,31.93117366,84.919,84.88,3.04483821]
[1772422873161,3.04483821,84.94,84.89,33.0366427]
[1772422873366,31.93117366,84.947,84.91,3.04483821]
[1772422873566,31.93117366,84.947,84.901,29.99180449]
[1772422874867,42.52677366,84.947,84.901,29.99180449]
[1772422875269,31.44866999,84.946,84.901,29.99180449]
[1772422875671,31.44866999,84.929,84.888,32.09615545]
[1772422876366,31.44866999,84.929,84.88,3.04483821]
[1772422876572,31.44866999,84.919,84.87,3.04483821]